fUSD/lending_fUSD_20260427
["ID","MTS","AMOUNT","RATE_DAILY","PERIOD"]
[421197497,1777230705598,-500.0,0.0004,15]
[421197498,1777230705610,-831.8,0.0004,15]
[421197499,1777230705620,-213.33629168,0.0004,15]
[421197500,1777230705631,-577.56,0.0004,15]
[421197501,1777230705642,-500.0,0.0004,15]
[421197502,1777230705652,-1054.82,0.0004,15]
[421197503,1777230705662,-1794.7,0.0004,15]
[421197504,1777230705671,-500.0,0.0004,15]
[421197505,1777230705680,-500.0,0.0004,15]
[421197506,1777230705689,-500.0,0.0004,15]
[421197507,1777230705698,-500.0,0.0004,15]
[421197508,1777230705708,-500.0,0.0004,15]
[421197509,1777230705717,-500.0,0.0004,15]
[421197510,1777230705727,-1628.58,0.0004,15]
[421197511,1777230705736,-500.0,0.0004,15]
[421197512,1777230705746,-500.0,0.0004,15]
[421197513,1777230705756,-500.0,0.0004,15]
[421197514,1777230705765,-793.17,0.0004,15]
[421197515,1777230705775,-500.0,0.0004,15]
[421197516,1777230705787,-500.0,0.0004,15]
[421197517,1777230705796,-500.0,0.0004,15]
[421197518,1777230705805,-2337.63,0.0004,15]
[421197519,1777230705814,-1346.97,0.0004,15]
[421197520,1777230705824,-500.0,0.0004,15]
[421197521,1777230705833,-1331.18,0.0004,15]
[421197522,1777230705842,-500.0,0.0004,15]
[421197523,1777230705851,-500.0,0.0004,15]
[421197524,1777230705862,-500.0,0.0004,15]
[421197525,1777230705871,-2102.69,0.0004,15]
[421197526,1777230705881,-579.9,0.0004,15]
[421197527,1777230705891,-783.32,0.0004,15]
[421197528,1777230705901,-4166.68,0.0004,2]
[421197529,1777230705910,-566.87,0.0004,15]
[421197530,1777230705920,-500.0,0.0004,15]
[421197531,1777230705929,-500.0,0.0004,15]
[421197532,1777230705938,-1884.87,0.0004,15]
[421197533,1777230705948,-500.0,0.0004,15]
[421197534,1777230705957,-500.0,0.0004,15]
[421197535,1777230705967,-1199.52,0.0004,15]
[421197536,1777230705976,-287.15251512,0.0004,15]
[421197537,1777230705986,-808.9,0.0004,15]
[421197538,1777230705996,-500.0,0.0004,15]
[421197539,1777230706005,-500.0,0.0004,15]
[421197540,1777230706015,-12545.47,0.0004,15]
[421197541,1777230706025,-2092.53,0.0004,15]
[421197542,1777230706035,-348.9736713,0.0004,15]
[421197543,1777230706052,-997.2863287,0.0004,15]
[421197544,1777230706063,-500.0,0.0004,15]
[421197545,1777230706072,-500.0,0.0004,15]
[421197546,1777230706082,-988.63,0.0004,15]
[421197547,1777230706092,-791.54,0.0004,15]
[421197548,1777230706101,-1460.02,0.0004,15]
[421197549,1777230706110,-500.0,0.0004,15]
[421197550,1777230706120,-500.0,0.0004,15]
[421197551,1777230706130,-2396.63,0.0004,15]
[421197552,1777230706140,-16627.45,0.0004,11]
[421197553,1777230706151,-1750.67,0.0004,15]
[421197554,1777230706162,-704.82,0.0004,15]
[421197555,1777230706172,-18480.37,0.0004,15]
[421197556,1777230706183,-838.62,0.0004,15]
[421197557,1777230706192,-643.71,0.0004,15]
[421197558,1777230706202,-4214.41,0.0004,15]
[421197559,1777230706211,-1043.57,0.0004,15]
[421197560,1777230706221,-612.41126368,0.0004,15]
[421197561,1777230706231,-1128.82,0.0004,15]
[421197562,1777230706240,-500.0,0.0004,15]
[421197563,1777230706250,-500.0,0.0004,15]
[421197564,1777230706259,-1350.11,0.0004,15]
[421197565,1777230706269,-1122.83,0.0004,15]
[421197566,1777230706279,-500.0,0.0004,15]
[421197567,1777230706288,-826.33,0.0004,15]
[421197568,1777230706297,-500.0,0.0004,15]
[421197569,1777230706307,-528.74217162,0.0004,15]
[421197570,1777230706593,-161.0,0.0001601,2]
[421197571,1777230706602,-2290.92782838,0.0004,15]
[421197572,1777230706612,-500.0,0.0004,15]
[421197573,1777230706621,-500.0,0.0004,15]
[421197574,1777230706631,-936.61,0.0004,15]
[421197575,1777230706640,-2084.4,0.0004,15]
[421197576,1777230706650,-500.0,0.0004,15]
[421197577,1777230706659,-500.0,0.0004,15]
[421197578,1777230706669,-500.0,0.0004,15]
[421197579,1777230706679,-500.0,0.0004,15]
[421197580,1777230706689,-500.0,0.0004,15]
[421197581,1777230706699,-257.68274387,0.0004,15]
[421197582,1777230706710,-242.31725613,0.0004,15]
[421197583,1777230706720,-1259.32,0.0004,15]
[421197584,1777230706730,-620.77,0.0004,15]
[421197585,1777230706740,-509.21,0.0004,15]
[421197586,1777230706750,-2495.88,0.0004,15]
[421197587,1777230706760,-800.28,0.0004,15]
[421197588,1777230706770,-500.0,0.0004,15]
[421197589,1777230706779,-500.0,0.0004,15]
[421197590,1777230706788,-500.0,0.0004,15]
[421197591,1777230706798,-4180.34,0.0004,15]
[421197592,1777230706807,-1435.38,0.0004,15]
[421197593,1777230706816,-500.0,0.0004,15]
[421197594,1777230706826,-577.19683419,0.0004,15]
[421197595,1777230706835,-241.19812882,0.0004,15]
[421197596,1777230706844,-355.58932575,0.0004,15]
[421197597,1777230706853,-639.3042505,0.0004,15]
[421197598,1777230706863,-500.0,0.0004,15]
[421197599,1777230706872,-1138.59,0.0004,15]
[421197600,1777230706882,-3856.9,0.0004,15]
[421197601,1777230706892,-1146.85,0.0004,15]
[421197602,1777230706901,-500.0,0.0004,15]
[421197603,1777230706910,-500.0,0.0004,15]
[421197604,1777230706920,-500.0,0.0004,15]
[421197605,1777230706929,-500.0,0.0004,15]
[421197606,1777230706938,-500.0,0.0004,15]
[421197607,1777230706947,-3436.63,0.0004,15]
[421197608,1777230706957,-500.0,0.0004,15]
[421197609,1777230706966,-500.0,0.0004,15]
[421197610,1777230706976,-13648.95005781,0.0004,120]
[421197611,1777230706988,-608.21731146,0.0004,120]
[421197612,1777230706999,-406.02414376,0.0004,120]
[421197613,1777230707011,-13500.0,0.0004,120]
[421197614,1777230707023,-4444.10060758,0.0004,120]
[421197615,1777230707038,-2433.70787939,0.0004,120]
[421197616,1777230707047,-510.0,0.0004,120]
[421197617,1777230707056,-5001.17,0.0004,2]
[421197618,1777230707065,-433.74943586,0.0004,7]
[421197619,1777230707074,-1026.42524595,0.0004,20]
[421197620,1777230707084,-1006.97649134,0.0004,7]
[421197621,1777230707094,-1051.96217521,0.0004,20]
[421197622,1777230707104,-1579.85363834,0.0004,2]
[421197623,1777230707113,-361.39107259,0.0004,15]
[421197624,1777230707123,-2996.15004724,0.0004,7]
[421197625,1777230707134,-3.84995276,0.0004,7]
[421197626,1777230707144,-341.68629724,0.0004,2]
[421197627,1777230707159,-712.54357013,0.0004,2]
[421197628,1777230707170,-1180.95304529,0.0004,2]
[421197629,1777230707181,-3000.0,0.0004,2]
[421197630,1777230707192,-1434.61950838,0.0004,2]
[421197631,1777230742274,502.0,0.00032877,120]
[421197634,1777231831576,-280.0,8.219e-05,2]
[421197635,1777231831587,-250.0,0.00013,2]
[421197636,1777231831597,-485.0,0.00013557,2]
[421197637,1777231831607,-150.0,0.00013999,2]
[421197638,1777231831616,-3090.18089016,0.00014,2]
[421197639,1777231831628,-72851.93992063,0.00014,2]
[421197640,1777231831637,-226.33321594,0.00014627,2]
[421197641,1777231831647,-300.0,0.00015,2]
[421197642,1777231831656,-255.0,0.00015119,2]
[421197643,1777231831666,-245.72903749,0.0001567,33]
[421197644,1777231831675,-245.72903749,0.0001567,33]
[421197645,1777231831685,-160.0,0.00015695,2]
[421197646,1777231831694,-245.72903747,0.0001577,37]
[421197647,1777231831703,-245.72903747,0.0001577,37]
[421197648,1777231831713,-245.72903747,0.0001577,37]
[421197649,1777231831722,-245.72903747,0.0001587,41]
[421197650,1777231831732,-245.72903747,0.0001587,41]
[421197651,1777231831742,-245.72903747,0.0001587,41]
[421197652,1777231831751,-245.72903747,0.0001597,45]
[421197653,1777231831761,-245.72903747,0.0001597,45]
[421197654,1777231831770,-245.72903747,0.0001597,45]
[421197655,1777231831779,-245.72903747,0.0001607,52]
[421197656,1777231831789,-245.72903747,0.0001607,52]
[421197657,1777231831799,-245.72903747,0.0001607,52]
[421197658,1777231831808,-151.0,0.00016106,2]
[421197659,1777231831819,-151.0,0.00016106,2]
[421197660,1777231831828,-151.0,0.00016106,2]
[421197661,1777231831837,-151.0,0.00016106,2]
[421197662,1777231831847,-151.0,0.00016106,2]
[421197663,1777231831857,-151.0,0.00016106,2]
[421197665,1777231831866,-151.0,0.00016106,2]
[421197667,1777231831875,-151.0,0.00016106,2]
[421197669,1777231831884,-151.0,0.00016106,2]
[421197671,1777231831893,-2535.92,0.00016116,2]
[421197673,1777231831903,-765.85,0.00016116,2]
[421197675,1777231831913,-1302.48,0.00016116,2]
[421197677,1777231831922,-20034.4707318,0.00016116,2]
[421197679,1777231831937,-1951.87210122,0.00016116,2]
[421197683,1777231831960,-1271.14161176,0.00016116,2]
[421197685,1777231831972,-985.49938001,0.00016116,2]
[421197689,1777231832021,-859.784997,0.00016116,2]
[421197690,1777231832032,-1605.99198305,0.00016116,2]
[421197691,1777231832043,-785.81555945,0.00016116,2]
[421197692,1777231832054,-1666.30363571,0.00016116,2]
[421197693,1777231832063,-643.36,0.00016116,2]
[421197694,1777231832073,-433.0,0.00016323,2]
[421197695,1777231832082,-360.0,0.00017639,2]
[421197696,1777231832091,-1811.38,0.00017728,2]
[421197697,1777231832100,-547.03,0.00017728,2]
[421197698,1777231832110,-930.34,0.00017728,2]
[421197699,1777231832119,-5659.92139481,0.00017728,2]
[421197700,1777231837748,-1318.75819923,0.00017728,2]
[421197701,1777231837897,-361.99000003,0.00017728,2]
[421197702,1777231837910,-11979.75265951,0.00017728,2]
[421197703,1777231837923,-921.27653065,0.00017728,2]
[421197704,1777231837934,-338.73839899,0.00017728,2]
[421197705,1777231838086,-248.76281678,0.00017728,2]
[421197706,1777231838096,-202.39223083,0.00017728,2]
[421197707,1777231838108,-257.14776917,0.00017728,2]
[421197708,1777231838117,-162.25551732,0.00018246,2]
[421197709,1777231838126,-160.0,0.00018246,2]
[421197710,1777231838135,-155.94716998,0.00018584,2]
[421197712,1777231838145,-153.0,0.0002,2]
[421197713,1777231838155,-238.0,0.0002,2]
[421197715,1777231838164,-250.0,0.0002,2]
[421197717,1777231838174,-263.0,0.0002,2]
[421197718,1777231838183,-154.0,0.0002,2]
[421197719,1777231838193,-153.0,0.00021,2]
[421197720,1777231838202,-238.0,0.00021,2]
[421197722,1777231838212,-250.0,0.00021,2]
[421197724,1777231838221,-263.0,0.00021,2]
[421197726,1777231838231,-153.0,0.00022,2]
[421197727,1777231838240,-238.0,0.00022,2]
[421197728,1777231838249,-250.0,0.00022,2]
[421197729,1777231838258,-263.0,0.00022,2]
[421197730,1777231838268,-532.81846125,0.00022033,2]
[421197763,1777231840248,-687.18153875,0.00022033,2]
[421197764,1777231840257,-500.0,0.00022951,2]
[421197765,1777231840267,-500.0,0.00022951,2]
[421197766,1777231840276,-500.0,0.00022951,2]
[421197767,1777231840285,-82.25961638,0.00022951,2]
[421197768,1777231840418,-417.74038362,0.00022951,2]
[421197769,1777231840427,-500.0,0.00022951,2]
[421197770,1777231840437,-594.31304738,0.00022951,2]
[421197771,1777231840446,-500.0,0.00022951,2]
[421197772,1777231840456,-500.0,0.00022951,2]
[421197773,1777231840466,-500.0,0.00022951,2]
[421197774,1777231840475,-475.8359514,0.00022951,2]
[421197804,1777231842853,-428.90575578,0.00021872,2]
[421197805,1777231843020,-836.43678098,0.00021872,2]
[421197811,1777231845935,-4739.2710069,0.00021872,2]
[421197812,1777231845996,-28.38645634,0.00021872,2]
[421197813,1777231846006,-24.1640486,0.00022951,2]
[421197814,1777231846016,-500.0,0.00022951,2]
[421197815,1777231846026,-229.14949506,0.00022951,2]
[421197823,1777231900789,1848.0,0.0003287,120]
[421197824,1777231901588,1121.0,0.0003287,120]
[421197825,1777231902354,965.0,0.0003287,120]
[421197826,1777231904823,311.0,0.0003287,120]
[421197827,1777231905620,267.0,0.0003287,120]
[421197828,1777231926337,500.0,0.0003287,120]
[421197829,1777231960389,1356.0,0.0003287,120]
[421197831,1777232214889,305.254435,0.00031595,120]
[421197832,1777232332415,230.54012,0.00030982,120]
[421197833,1777232695354,678.0,0.0003,120]
[421197834,1777232695644,678.0,0.0003,120]
[421197835,1777232695925,678.0,0.0003,120]
[421197836,1777232696279,678.0,0.0003,120]
[421197837,1777232697562,678.0,0.0003,120]
[421197838,1777232697628,678.0,0.0003,120]
[421197839,1777232697701,678.0,0.0003,120]
[421197840,1777232697762,678.0,0.0003,120]
[421197841,1777232697815,946.0,0.0003,120]
[421197842,1777232815820,441.89250685,0.000328,120]
[421197843,1777232880837,230.54012,0.0002744,120]
[421197850,1777233031870,-280.0,8.219e-05,2]
[421197851,1777233031880,-61.348914,8.352e-05,2]
[421197852,1777233031920,-88.651086,8.352e-05,2]
[421197853,1777233031929,-300.0,8.506e-05,2]
[421197854,1777233031939,-1200.0,8.506e-05,2]
[421197855,1777233031948,-206.96224548,8.507e-05,2]
[421197856,1777233031958,-1663.60621407,8.507e-05,2]
[421197857,1777233031969,-1314.73759288,8.507e-05,2]
[421197858,1777233031979,-250.0,8.507e-05,2]
[421197859,1777233031988,-300.0,8.507e-05,2]
[421197860,1777233031998,-300.0,8.686e-05,2]
[421197861,1777233032007,-445.558914,8.686e-05,2]
[421197862,1777233032018,-420.0,9.356e-05,2]
[421197863,1777233032028,-480.0,9.356e-05,2]
[421197864,1777233032040,-287.0,0.00010292,2]
[421197865,1777233032050,-150.0,0.0001044,2]
[421197866,1777233032059,-150.0,0.0001044,2]
[421197867,1777233032068,-250.0,0.00010579,2]
[421197868,1777233032078,-150.0,0.00010999,2]
[421197869,1777233032087,-1000.0,0.00011,2]
[421197870,1777233032096,-1000.0,0.00011,2]
[421197871,1777233032106,-1000.0,0.00011,2]
[421197872,1777233032115,-1000.0,0.00011,2]
[421197873,1777233032124,-1000.0,0.00011,2]
[421197874,1777233032133,-1000.0,0.00011,2]
[421197875,1777233032143,-1000.0,0.00011,2]
[421197876,1777233032153,-1000.0,0.00011,2]
[421197877,1777233032163,-1000.0,0.00011,2]
[421197878,1777233032173,-1000.0,0.00011,2]
[421197879,1777233032183,-1000.0,0.00011,2]
[421197880,1777233032193,-1000.0,0.00011,2]
[421197882,1777233032203,-1000.0,0.00011,2]
[421197883,1777233032212,-1000.0,0.00011,2]
[421197884,1777233032221,-255.0,0.00012044,2]
[421197885,1777233032232,-150.0,0.00012517,2]
[421197886,1777233032241,-6786.3412,0.00012793,2]
[421197888,1777233032251,-453.44,0.00012836,2]
[421197890,1777233032260,-150.99,0.00012893,2]
[421197891,1777233032269,-2121.05,0.00012893,2]
[421197893,1777233032278,-299.99,0.00012893,2]
[421197895,1777233032287,-14136.0,0.00012893,2]
[421197897,1777233032296,-12992.57,0.00012893,2]
[421197899,1777233032305,-9999.99,0.00012893,2]
[421197901,1777233032314,-9999.99,0.00012893,2]
[421197903,1777233032325,-28056.12,0.00012893,2]
[421197906,1777233032334,-4999.99,0.00012893,2]
[421197909,1777233032343,-1513.93,0.00012893,2]
[421197912,1777233032352,-765.99,0.00012893,2]
[421197915,1777233032361,-352.16,0.00012893,2]
[421197918,1777233032370,-433.0,0.00013188,2]
[421197920,1777233032379,-500.0,0.00014442,2]
[421197922,1777233032390,-736.0,0.00014442,2]
[421197924,1777233032399,-500.0,0.00014716,2]
[421197926,1777233032408,-500.0,0.0001553,2]
[421197928,1777233032417,-176.924907,0.0001567,33]
[421197930,1777233032427,-176.92490699,0.0001567,33]
[421197932,1777233032437,-176.92490699,0.0001567,33]
[421197934,1777233032447,-176.92490698,0.0001577,37]
[421197936,1777233032456,-176.92490698,0.0001577,37]
[421197938,1777233032466,-176.92490698,0.0001577,37]
[421197940,1777233032475,-1252.0,0.00015817,2]
[421197942,1777233032485,-176.92490698,0.0001587,41]
[421197944,1777233032494,-176.92490698,0.0001587,41]
[421197946,1777233032504,-176.92490698,0.0001587,41]
[421197948,1777233032514,-176.92490698,0.0001597,45]
[421197950,1777233032523,-176.92490698,0.0001597,45]
[421197952,1777233032532,-176.92490698,0.0001597,45]
[421197954,1777233032541,-176.92490698,0.0001607,52]
[421197956,1777233032550,-176.92490698,0.0001607,52]
[421197958,1777233032560,-176.92490698,0.0001607,52]
[421197960,1777233032569,-707.3,0.00016438,2]
[421197962,1777233032578,-163.34704649,0.00016438,2]
[421197964,1777233032587,-163.34704649,0.00016438,2]
[421197966,1777233032596,-163.34704648,0.00016438,2]
[421197968,1777233032606,-255.0,0.00017312,2]
[421197970,1777233032615,-707.3,0.0001858,2]
[421197972,1777233032624,-155.94716998,0.00018717,2]
[421197974,1777233032633,-160.0,0.00019243,2]
[421197976,1777233032642,-162.25551732,0.0001935,2]
[421197978,1777233032651,-3954.6221901,0.00019392,2]
[421197980,1777233032660,-300.0,0.00019532,3]
[421197982,1777233032669,-200.0,0.00019806,3]
[421197984,1777233032679,-153.0,0.0002,2]
[421197986,1777233032688,-202.0,0.0002,2]
[421197988,1777233032698,-213.0,0.0002,2]
[421197990,1777233032707,-224.0,0.0002,2]
[421197992,1777233032717,-151.0,0.0002043,2]
[421197994,1777233032726,-151.0,0.0002043,2]
[421197996,1777233032736,-151.0,0.0002043,2]
[421197998,1777233032745,-151.0,0.0002043,2]
[421197999,1777233032754,-151.0,0.0002043,2]
[421198000,1777233032764,-151.0,0.0002043,2]
[421198001,1777233032774,-151.0,0.0002043,2]
[421198002,1777233032784,-151.0,0.0002043,2]
[421198003,1777233032793,-151.0,0.0002043,2]
[421198004,1777233032803,-151.0,0.0002043,2]
[421198005,1777233032812,-151.0,0.0002043,2]
[421198006,1777233032822,-257.26616216,0.00020564,2]
[421198007,1777233032831,-150.0,0.00020564,2]
[421198008,1777233032840,-150.00000001,0.00020564,2]
[421198009,1777233032849,-150.0,0.00020564,2]
[421198010,1777233032858,-707.3,0.00020722,2]
[421198011,1777233032867,-311.86,0.00021,2]
[421198012,1777233032877,-153.0,0.00021,2]
[421198013,1777233032886,-202.0,0.00021,2]
[421198014,1777233032896,-213.0,0.00021,2]
[421198015,1777233032905,-224.0,0.00021,2]
[421198016,1777233032914,-500.0,0.00021233,2]
[421198017,1777233032924,-500.0,0.00021434,2]
[421198018,1777233032934,-500.0,0.00021434,2]
[421198019,1777233032943,-500.0,0.00021434,2]
[421198020,1777233032952,-500.0,0.00021434,2]
[421198021,1777233032962,-500.0,0.00021434,2]
[421198022,1777233032971,-500.0,0.00021434,2]
[421198023,1777233032980,-500.0,0.00021434,2]
[421198024,1777233032991,-500.0,0.00021434,2]
[421198025,1777233033000,-500.0,0.00021434,2]
[421198026,1777233033010,-153.19675918,0.00021434,2]
[421198027,1777233033020,-500.0,0.00021434,2]
[421198028,1777233033029,-500.0,0.00021434,2]
[421198029,1777233033039,-500.0,0.00021434,2]
[421198030,1777233033048,-500.0,0.00021434,2]
[421198031,1777233033057,-500.0,0.00021434,2]
[421198032,1777233033067,-500.0,0.00021434,2]
[421198033,1777233033076,-500.0,0.00021434,2]
[421198034,1777233033086,-500.0,0.00021434,2]
[421198035,1777233033095,-500.0,0.00021434,2]
[421198036,1777233033104,-500.0,0.00021434,2]
[421198037,1777233033114,-500.0,0.00021434,2]
[421198038,1777233033123,-500.0,0.00021434,2]
[421198039,1777233033132,-500.0,0.00021434,2]
[421198040,1777233033142,-500.0,0.00021434,2]
[421198041,1777233033152,-500.0,0.00021434,2]
[421198042,1777233033162,-500.0,0.00021434,2]
[421198043,1777233033171,-500.0,0.00021434,2]
[421198044,1777233033181,-500.0,0.00021434,2]
[421198045,1777233033190,-500.0,0.00021434,2]
[421198046,1777233033200,-500.0,0.00021434,2]
[421198047,1777233033209,-500.0,0.00021434,2]
[421198048,1777233033218,-500.0,0.00021434,2]
[421198049,1777233033227,-500.0,0.00021434,2]
[421198050,1777233033237,-500.0,0.00021434,2]
[421198051,1777233033246,-500.0,0.00021434,2]
[421198052,1777233033256,-500.0,0.00021434,2]
[421198053,1777233033265,-600.0,0.00021434,2]
[421198054,1777233033274,-500.0,0.00021434,2]
[421198055,1777233033284,-500.0,0.00021434,2]
[421198056,1777233033293,-500.0,0.00021434,2]
[421198057,1777233033303,-500.0,0.00021434,2]
[421198058,1777233033312,-500.0,0.00021434,2]
[421198059,1777233033321,-500.0,0.00021434,2]
[421198060,1777233033330,-500.0,0.00021434,2]
[421198061,1777233033340,-500.0,0.00021434,2]
[421198062,1777233033349,-500.0,0.00021434,2]
[421198063,1777233033358,-500.0,0.00021434,2]
[421198064,1777233033367,-500.0,0.00021434,2]
[421198065,1777233033377,-500.0,0.00021434,2]
[421198066,1777233033386,-500.0,0.00021434,2]
[421198067,1777233033395,-2500.0,0.00021434,2]
[421198068,1777233033404,-48441.0548,0.00021435,2]
[421198069,1777233033414,-500.0,0.00021473,2]
[421198070,1777233033423,-500.0,0.00021473,2]
[421198071,1777233033432,-501.86229103,0.00021473,2]
[421198072,1777233033443,-2487.93964206,0.00021534,2]
[421198073,1777233033452,-3954.6221901,0.00021535,2]
[421198074,1777233033461,-156.27909938,0.00021918,2]
[421198075,1777233033470,-623.0,0.00021963,2]
[421198076,1777233033480,-1048.0,0.00021963,2]
[421198077,1777233033490,-1235.872,0.00021963,2]
[421198078,1777233033499,-416.0,0.00021963,2]
[421198079,1777233033509,-204.093,0.00021963,2]
[421198080,1777233033518,-3781.0,0.00021963,2]
[421198081,1777233033527,-150.487,0.00021963,2]
[421198082,1777233033536,-6033.0,0.00021963,2]
[421198083,1777233033546,-153.0,0.00022,2]
[421198084,1777233033555,-202.0,0.00022,2]
[421198085,1777233033566,-213.0,0.00022,2]
[421198086,1777233033575,-224.0,0.00022,2]
[421198087,1777233033584,-460.39779499,0.00022653,2]
[421198088,1777233033594,-3728.47050611,0.00022653,2]
[421198089,1777233033604,-460.39779498,0.00022709,2]
[421198090,1777233033613,-204.47231971,0.00022752,2]
[421198091,1777233033623,-500.0,0.00022752,2]
[421198092,1777233033633,-500.0,0.00022752,2]
[421198093,1777233033642,-500.0,0.00022752,2]
[421198094,1777233033651,-194.60724022,0.00022752,2]
[421198095,1777233033660,-206.27094954,0.00022752,2]
[421198096,1777233033670,-250.0,0.00022752,2]
[421198097,1777233033679,-322.38,0.00022752,2]
[421198098,1777233033688,-500.0,0.00022752,2]
[421198099,1777233033698,-500.0,0.00022752,2]
[421198100,1777233033707,-500.0,0.00022752,2]
[421198101,1777233033718,-500.0,0.00022752,2]
[421198102,1777233033727,-500.0,0.00022752,2]
[421198103,1777233033737,-500.0,0.00022752,2]
[421198104,1777233033746,-116371.11209219,0.00022753,2]
[421198105,1777233033760,-74023.78921892,0.00022753,2]
[421198106,1777233033772,-26336.10169252,0.00022753,2]
[421198107,1777233033784,-20406.21132203,0.00022753,2]
[421198108,1777233033808,-512.90085166,0.00022753,2]
[421198109,1777233033824,-2642.63241699,0.00022753,2]
[421198110,1777233033835,-2586.05206249,0.00022753,2]
[421198111,1777233033847,-1284.18884217,0.00022753,2]
[421198112,1777233033858,-2434.79182097,0.00022753,2]
[421198113,1777233033874,-719.52552339,0.00022753,2]
[421198114,1777233033889,-985.20374786,0.00022753,2]
[421198115,1777233033901,-1159.94357071,0.00022753,2]
[421198118,1777233038052,-500.0,0.00021434,2]
[421198119,1777233038062,-165346.27677525,0.00022753,2]
[421198120,1777233038108,-469.10245822,0.00022753,2]
[421198121,1777233038119,-1057.47540344,0.00022753,2]
[421198122,1777233038131,-1000.18778537,0.00022753,2]
[421198123,1777233038143,-865.69,0.00022753,2]
[421198124,1777233038238,-11991.61838017,0.00022753,2]
[421198125,1777233038253,-787.82470441,0.00022753,2]
[421198126,1777233038264,-1401.9124575,0.00022753,2]
[421198127,1777233038276,-1020.9060611,0.00022753,2]
[421198128,1777233038288,-19468.68671659,0.00022753,2]
[421198297,1777233040119,-150.0,0.00011096,2]
[421198299,1777233040129,-1173.12656741,0.00022753,2]
[421198420,1777233041491,-1195.88211186,0.00022753,2]
[421198430,1777233041574,-14637.31840052,0.00022753,2]
[421198435,1777233041622,-245083.85671626,0.00022753,2]
[421198437,1777233041631,-977.2826,0.00022753,2]
[421198439,1777233041641,-460.39779498,0.00022764,2]
[421198441,1777233041651,-194.32,0.00022845,2]
[421198443,1777233041660,-155.52002609,0.00022852,20]
[421198445,1777233041669,-500.0,0.00022852,2]
[421198447,1777233041687,-500.0,0.00022852,2]
[421198448,1777233041699,-500.0,0.00022852,2]
[421198449,1777233041708,-500.0,0.00022852,2]
[421198450,1777233041718,-500.0,0.00022852,2]
[421198451,1777233041727,-500.0,0.00022852,2]
[421198452,1777233041736,-500.0,0.00022852,2]
[421198453,1777233041746,-500.0,0.00022852,2]
[421198454,1777233041755,-500.0,0.00022852,2]
[421198455,1777233041765,-21715.8895,0.00022853,2]
[421198456,1777233041775,-1500000.0,0.00022853,2]
[421198457,1777233041785,-707.3,0.00022864,2]
[421198458,1777233041794,-5516.11,0.000229,7]
[421198459,1777233041803,-153.0,0.00023,2]
[421198460,1777233041813,-202.0,0.00023,2]
[421198461,1777233041823,-213.0,0.00023,2]
[421198462,1777233041832,-224.0,0.00023,2]
[421198463,1777233041842,-322.38,0.00023026,2]
[421198464,1777233041852,-322.4,0.000233,2]
[421198465,1777233041861,-311.86,0.000235,2]
[421198466,1777233041871,-3954.6221901,0.00023677,2]
[421198467,1777233041880,-202.0,0.00024,2]
[421198468,1777233041890,-213.0,0.00024,2]